Workbook

Sheet Klimagass
B1: BEREGNING KLIMAGASSUTSLIPP FOR UTVALGTE INNSATSFAKTORER
B4: Firma
B5: Prosjekt
B6: Dato
B7: Velg: budsjett/regnskap
B10: Innsatsfaktor | D10: Utslipp totalt | E10: Utslippsfaktor | F10: Mengde | G10: Enhet | H10: SUM A1-A3: Materialproduksjon | I10: A4: Transport | J10: A5: Konstruksjons- fase | K10: Kort kommentar
D11: tonn CO2e | E11: kg CO2e/enhet | F11: n/a | G11: n/a | H11: kg CO2e/enhet | I11: kg CO2e/enhet | J11: kg CO2/enhet
C13: Konstruksjonsbetong | D13: =SUM(D14:D23) -> 0 | F13: =SUM(F14:F23) -> 0 | G13: m3
C14: …. (fyll inn beskrivelse) | D14: =+E14*F14/1000 -> 0 | E14: =+H14+I14 -> 0 | G14: m3
C15: …. (fyll inn beskrivelse) | D15: 0 | E15: 0 | G15: m3
C16: …. (fyll inn beskrivelse) | D16: 0 | E16: 0 | G16: m3
C17: …. (fyll inn beskrivelse) | D17: 0 | E17: 0 | G17: m3
C18: …. (fyll inn beskrivelse) | D18: 0 | E18: 0 | G18: m3
C19: …. (fyll inn beskrivelse) | D19: 0 | E19: 0 | G19: m3
C20: …. (fyll inn beskrivelse) | D20: 0 | E20: 0 | G20: m3
C21: …. (fyll inn beskrivelse) | D21: 0 | E21: 0 | G21: m3
C22: …. (fyll inn beskrivelse) | D22: 0 | E22: 0 | G22: m3
C23: …. (fyll inn beskrivelse) | D23: 0 | E23: 0 | G23: m3
C24: Betongelementer - prefabrikert | D24: =SUM(D25:D34) -> 0 | F24: =SUM(F25:F34) -> 0 | G24: tonn
C25: …. (fyll inn beskrivelse) | D25: =+E25*F25/1000 -> 0 | E25: 0 | G25: tonn
C26: …. (fyll inn beskrivelse) | D26: 0 | E26: 0 | G26: tonn
C27: …. (fyll inn beskrivelse) | D27: 0 | E27: 0 | G27: tonn
C28: …. (fyll inn beskrivelse) | D28: 0 | E28: 0 | G28: tonn
C29: …. (fyll inn beskrivelse) | D29: 0 | E29: 0 | G29: tonn
C30: …. (fyll inn beskrivelse) | D30: 0 | E30: 0 | G30: tonn
C31: …. (fyll inn beskrivelse) | D31: 0 | E31: 0 | G31: tonn
C32: …. (fyll inn beskrivelse) | D32: 0 | E32: 0 | G32: tonn
C33: …. (fyll inn beskrivelse) | D33: 0 | E33: =+H33+I33 -> 0 | G33: tonn
C34: …. (fyll inn beskrivelse) | D34: 0 | E34: 0 | G34: tonn
C35: Stål, armering (kamstål) | D35: =SUM(D36:D45) -> 0 | F35: =SUM(F36:F45) -> 0 | G35: tonn
C36: …. (fyll inn beskrivelse) | D36: =+E36*F36/1000 -> 0 | E36: =+H36+I36 -> 0 | G36: tonn
C37: …. (fyll inn beskrivelse) | D37: 0 | E37: 0 | G37: tonn
C38: …. (fyll inn beskrivelse) | D38: 0 | E38: 0 | G38: tonn
C39: …. (fyll inn beskrivelse) | D39: 0 | E39: 0 | G39: tonn
C40: …. (fyll inn beskrivelse) | D40: 0 | E40: 0 | G40: tonn
C41: …. (fyll inn beskrivelse) | D41: 0 | E41: 0 | G41: tonn
C42: …. (fyll inn beskrivelse) | D42: 0 | E42: 0 | G42: tonn
C43: …. (fyll inn beskrivelse) | D43: 0 | E43: 0 | G43: tonn
C44: …. (fyll inn beskrivelse) | D44: 0 | E44: 0 | G44: tonn
C45: …. (fyll inn beskrivelse) | D45: 0 | E45: 0 | G45: tonn
C46: Stål, spennarmering | D46: =SUM(D47:D56) -> 0 | F46: =SUM(F47:F56) -> 0 | G46: tonn
C47: …. (fyll inn beskrivelse) | D47: 0 | E47: =+H47+I47 -> 0 | G47: tonn
C48: …. (fyll inn beskrivelse) | D48: 0 | E48: 0 | G48: tonn
C49: …. (fyll inn beskrivelse) | D49: 0 | E49: 0 | G49: tonn
C50: …. (fyll inn beskrivelse) | D50: 0 | E50: 0 | G50: tonn
C51: …. (fyll inn beskrivelse) | D51: 0 | E51: 0 | G51: tonn
C52: …. (fyll inn beskrivelse) | D52: 0 | E52: 0 | G52: tonn
C53: …. (fyll inn beskrivelse) | D53: 0 | E53: 0 | G53: tonn
C54: …. (fyll inn beskrivelse) | D54: 0 | E54: 0 | G54: tonn
C55: …. (fyll inn beskrivelse) | D55: 0 | E55: 0 | G55: tonn
C56: …. (fyll inn beskrivelse) | D56: 0 | E56: 0 | G56: tonn
C57: Stål, peler | D57: =SUM(D58:D67) -> 0 | F57: =SUM(F58:F67) -> 0 | G57: tonn
C58: …. (fyll inn beskrivelse) | D58: 0 | E58: =+H58+I58 -> 0 | G58: tonn
C59: …. (fyll inn beskrivelse) | D59: 0 | E59: 0 | G59: tonn
C60: …. (fyll inn beskrivelse) | D60: 0 | E60: 0 | G60: tonn
C61: …. (fyll inn beskrivelse) | D61: 0 | E61: 0 | G61: tonn
C62: …. (fyll inn beskrivelse) | D62: 0 | E62: 0 | G62: tonn
C63: …. (fyll inn beskrivelse) | D63: 0 | E63: 0 | G63: tonn
C64: …. (fyll inn beskrivelse) | D64: 0 | E64: 0 | G64: tonn
C65: …. (fyll inn beskrivelse) | D65: 0 | E65: 0 | G65: tonn
C66: …. (fyll inn beskrivelse) | D66: 0 | E66: 0 | G66: tonn
C67: …. (fyll inn beskrivelse) | D67: 0 | E67: 0 | G67: tonn
C68: Stål, spunt | D68: =SUM(D69:D78) -> 0 | F68: =SUM(F69:F78) -> 0 | G68: tonn
C69: …. (fyll inn beskrivelse) | D69: =+E69*F69/1000 -> 0 | E69: =+H69+I69 -> 0 | G69: tonn
C70: …. (fyll inn beskrivelse) | D70: 0 | E70: 0 | G70: tonn
C71: …. (fyll inn beskrivelse) | D71: 0 | E71: 0 | G71: tonn
C72: …. (fyll inn beskrivelse) | D72: 0 | E72: 0 | G72: tonn
C73: …. (fyll inn beskrivelse) | D73: 0 | E73: 0 | G73: tonn
C74: …. (fyll inn beskrivelse) | D74: 0 | E74: 0 | G74: tonn
C75: …. (fyll inn beskrivelse) | D75: 0 | E75: 0 | G75: tonn
C76: …. (fyll inn beskrivelse) | D76: 0 | E76: 0 | G76: tonn
C77: …. (fyll inn beskrivelse) | D77: 0 | E77: 0 | G77: tonn
C78: …. (fyll inn beskrivelse) | D78: 0 | E78: 0 | G78: tonn
C79: Stål, konstruksjonsstål | D79: =SUM(D80:D89) -> 0 | F79: =SUM(F80:F89) -> 0 | G79: tonn
C80: …. (fyll inn beskrivelse) | D80: =+E80*F80/1000 -> 0 | E80: =+H80+I80 -> 0 | G80: tonn
C81: …. (fyll inn beskrivelse) | D81: 0 | E81: 0 | G81: tonn
C82: …. (fyll inn beskrivelse) | D82: 0 | E82: 0 | G82: tonn
C83: …. (fyll inn beskrivelse) | D83: 0 | E83: 0 | G83: tonn
C84: …. (fyll inn beskrivelse) | D84: 0 | E84: 0 | G84: tonn
C85: …. (fyll inn beskrivelse) | D85: 0 | E85: 0 | G85: tonn
C86: …. (fyll inn beskrivelse) | D86: 0 | E86: 0 | G86: tonn
C87: …. (fyll inn beskrivelse) | D87: 0 | E87: 0 | G87: tonn
C88: …. (fyll inn beskrivelse) | D88: 0 | E88: 0 | G88: tonn
C89: …. (fyll inn beskrivelse) | D89: 0 | E89: 0 | G89: tonn
C90: Trevirke, limtre | D90: =SUM(D91:D100) -> 0 | F90: =SUM(F91:F100) -> 0 | G90: m3
C91: …. (fyll inn beskrivelse) | D91: =+E91*F91/1000 -> 0 | E91: =+H91+I91 -> 0 | G91: m3
C92: …. (fyll inn beskrivelse) | D92: 0 | E92: 0 | G92: m3
C93: …. (fyll inn beskrivelse) | D93: 0 | E93: 0 | G93: m3
C94: …. (fyll inn beskrivelse) | D94: 0 | E94: 0 | G94: m3
C95: …. (fyll inn beskrivelse) | D95: 0 | E95: 0 | G95: m3
C96: …. (fyll inn beskrivelse) | D96: 0 | E96: 0 | G96: m3
C97: …. (fyll inn beskrivelse) | D97: 0 | E97: 0 | G97: m3
C98: …. (fyll inn beskrivelse) | D98: 0 | E98: 0 | G98: m3
C99: …. (fyll inn beskrivelse) | D99: 0 | E99: 0 | G99: m3
C100: …. (fyll inn beskrivelse) | D100: 0 | E100: 0 | G100: m3
C101: Trevirke, konstruksjonstrevirke | D101: =SUM(D102:D111) -> 0 | F101: =SUM(F102:F111) -> 0 | G101: m3
C102: …. (fyll inn beskrivelse) | D102: =+E102*F102/1000 -> 0 | E102: =+H102+I102 -> 0 | G102: m3
C103: …. (fyll inn beskrivelse) | D103: 0 | E103: 0 | G103: m3
C104: …. (fyll inn beskrivelse) | D104: 0 | E104: 0 | G104: m3
C105: …. (fyll inn beskrivelse) | D105: 0 | E105: 0 | G105: m3
C106: …. (fyll inn beskrivelse) | D106: 0 | E106: 0 | G106: m3
C107: …. (fyll inn beskrivelse) | D107: 0 | E107: 0 | G107: m3
C108: …. (fyll inn beskrivelse) | D108: 0 | E108: 0 | G108: m3
C109: …. (fyll inn beskrivelse) | D109: 0 | E109: 0 | G109: m3
C110: …. (fyll inn beskrivelse) | D110: 0 | E110: 0 | G110: m3
C111: …. (fyll inn beskrivelse) | D111: 0 | E111: 0 | G111: m3
C112: Asfalt (slite- og bindelag) | D112: =SUM(D113:D122) -> 0 | F112: =SUM(F113:F122) -> 0 | G112: tonn
C113: …. (fyll inn beskrivelse) | D113: =+E113*F113/1000 -> 0 | E113: =+H113+I113 -> 0 | G113: tonn
C114: …. (fyll inn beskrivelse) | D114: 0 | E114: 0 | G114: tonn
C115: …. (fyll inn beskrivelse) | D115: 0 | E115: 0 | G115: tonn
C116: …. (fyll inn beskrivelse) | D116: 0 | E116: 0 | G116: tonn
C117: …. (fyll inn beskrivelse) | D117: 0 | E117: 0 | G117: tonn
C118: …. (fyll inn beskrivelse) | D118: 0 | E118: 0 | G118: tonn
C119: …. (fyll inn beskrivelse) | D119: 0 | E119: 0 | G119: tonn
C120: …. (fyll inn beskrivelse) | D120: 0 | E120: 0 | G120: tonn
C121: …. (fyll inn beskrivelse) | D121: 0 | E121: 0 | G121: tonn
C122: …. (fyll inn beskrivelse) | D122: 0 | E122: 0 | G122: tonn
C123: Asfalt bærelag | D123: =SUM(D124:D133) -> 0 | F123: =SUM(F124:F133) -> 0 | G123: tonn
C124: …. (fyll inn beskrivelse) | D124: 0 | E124: 0 | G124: tonn
C125: …. (fyll inn beskrivelse) | D125: 0 | E125: 0 | G125: tonn
C126: …. (fyll inn beskrivelse) | D126: 0 | E126: 0 | G126: tonn
C127: …. (fyll inn beskrivelse) | D127: 0 | E127: 0 | G127: tonn
C128: …. (fyll inn beskrivelse) | D128: 0 | E128: 0 | G128: tonn
C129: …. (fyll inn beskrivelse) | D129: 0 | E129: 0 | G129: tonn
C130: …. (fyll inn beskrivelse) | D130: 0 | E130: 0 | G130: tonn
C131: …. (fyll inn beskrivelse) | D131: 0 | E131: 0 | G131: tonn
C132: …. (fyll inn beskrivelse) | D132: 0 | E132: 0 | G132: tonn
C133: …. (fyll inn beskrivelse) | D133: 0 | E133: 0 | G133: tonn
C134: Forsterkningslag | D134: =SUM(D135:D144) -> 0 | F134: =SUM(F135:F144) -> 0 | G134: tonn
C135: …. (fyll inn beskrivelse) | D135: 0 | E135: 0 | G135: tonn
C136: …. (fyll inn beskrivelse) | D136: 0 | E136: 0 | G136: tonn
C137: …. (fyll inn beskrivelse) | D137: 0 | E137: 0 | G137: tonn
C138: …. (fyll inn beskrivelse) | D138: 0 | E138: 0 | G138: tonn
C139: …. (fyll inn beskrivelse) | D139: 0 | E139: 0 | G139: tonn
C140: …. (fyll inn beskrivelse) | D140: 0 | E140: 0 | G140: tonn
C141: …. (fyll inn beskrivelse) | D141: 0 | E141: 0 | G141: tonn
C142: …. (fyll inn beskrivelse) | D142: 0 | E142: 0 | G142: tonn
C143: …. (fyll inn beskrivelse) | D143: 0 | E143: 0 | G143: tonn
C144: …. (fyll inn beskrivelse) | D144: 0 | E144: 0 | G144: tonn
C145: Fyllingsmateriale | D145: =SUM(D146:D155) -> 0 | G145: diverse
C146: …. (fyll inn beskrivelse) | D146: 0 | E146: 0 | G146: tonn
C147: …. (fyll inn beskrivelse) | D147: 0 | E147: 0 | G147: tonn
C148: …. (fyll inn beskrivelse) | D148: 0 | E148: 0 | G148: tonn
C149: …. (fyll inn beskrivelse) | D149: 0 | E149: 0 | G149: tonn
C150: …. (fyll inn beskrivelse) | D150: 0 | E150: 0 | G150: m2
C151: …. (fyll inn beskrivelse) | D151: 0 | E151: 0 | G151: m2
C152: …. (fyll inn beskrivelse) | D152: 0 | E152: 0 | G152: m2
C153: …. (fyll inn beskrivelse) | D153: 0 | E153: 0 | G153: m3
C154: …. (fyll inn beskrivelse) | D154: 0 | E154: 0 | G154: m3
C155: …. (fyll inn beskrivelse) | D155: 0 | E155: 0 | G155: m3
C156: Sprengstoff | D156: =SUM(D157:D160) -> 0 | G156: kg
C157: …. (fyll inn beskrivelse) | D157: =+E157*F157/1000 -> 0 | E157: =+H157 -> 0 | G157: kg
C158: …. (fyll inn beskrivelse) | D158: 0 | E158: 0 | G158: kg
C159: …. (fyll inn beskrivelse) | D159: 0 | E159: 0 | G159: kg
C160: …. (fyll inn beskrivelse) | D160: 0 | E160: =+H160 -> 0 | G160: kg
C161: Diesel avgiftsfri (anleggsdiesel) | D161: =+E161*F161/1000 -> 0 | E161: =J161 -> 3.24 | G161: l | J161: 3.24
C162: Diesel for veitransport | D162: 0 | E162: =J162 -> 2.93 | G162: l | J162: 2.93
C163: Bensin | D163: 0 | E163: 3.87 | G163: l | J163: 3.87
C164: Elektrisitet - Norsk miks | D164: 0 | E164: 0.0467 | G164: kWh | J164: 0.0467
C165: Arealbruksendring myr | D165: 0 | E165: =J165 -> 201.9 | G165: m2 | J165: 201.9
C167: Sum Materialer A1-A4 | D167: =D13+D24+D35+D46+D57+D68+D79+D90+D101+D112+D123+D134+D145+D156 -> 0 | E167: tonn CO2ekv
C168: Sum Anlegg A5 | D168: =SUM(D161:D164) -> 0 | E168: tonn CO2ekv
C169: Sum Arealbruksendring | D169: =D165 -> 0 | E169: tonn CO2ekv
C170: Sum Totalt | D170: =SUM(D167:D169) -> 0 | E170: tonn CO2ekv
D172: Summen i den røde firkanten brukes til evaluering

Sheet Brukerveiledning
B2: BRUKERVEILEDNING
B4: Skjemaet fylles ut av tilbyder. Navn og dato fylles inn i radene 4-7.
B6: Mengder og utslippsfaktorer fylles inn i hvite celler. Hvite celler blir synlige ved å trykke på '+' foran de aktuelle materialene.
B8: Presisjon:
B9: - Materialmengder avrundes til hele tall
B10: - Utslippsfaktorer avrundes til antall desimaler ihht VegLCA (utslippsfaktorfane)
B12: Blå og grå celler er låst. Blå celler inneholder eks. formler. Grå celler antyder at det ikke er relevant.
B14: Alle materialer som skal brukes og som finnes i skjemaet skal fylles inn.
B16: I kolonne I (Transport, A4) skal det fylles inn transportutslipp fra fabrikkport til anleggsport.
B17: Hvis ikke en EPD inneholder informasjon om fase A4 (transport av materialer til anleggsplass) skal transportkalkulatoren til LCA.no benyttes.
B19: Hvis ikke det finnes nok rader for underkategorier av et materiale, skal de gjenstående underkategorier fylles inn på et nytt skjema.
B21: Summen i den røde firkanten brukes til evaluering.
B23: Driftsfasen, riving og konsekvenser utenfor systemgrensene (fase B, C og D ihht EN 15804) er ikke inkludert.
B25: Det skal legges inn beregnede forbruksmengder, ikke prosjekterte mengder (f.eks. prelltap skal inkluderes).
B27: Presisering systemgrenser materialkategorier:
B28: - Konstruksjonsbetong: per resept, kun typer som beskrives i prosesskode 84.4
B29: - Betongelementer - prefabrikert: kun hvelv, peler og konstruksjoner. Ikke VA og rekkverk.
B30: - Stål, konstruksjonsstål: bærende konstruksjoner (ikke rekkverk og lysmaster).
B31: - Trevirke: kun konstrukjsoner. Ikke forskaling.
B32: - Forsterkningslag: grus, sand, pukk, kult, knust asfalt, knust betong.
B33: - Fyllingsmateriale: EPS, XPS, skumglassgranulat, lettklinker, ekspandert leire, grus, pukk. Merk at det brukes ulike enheter (tonn, m2, m3).
B34: - Sprengstoff: kun materialproduksjonsfase (A1-A3).
B36: Presisering systemgrenser drivstoff (gjelder leverandør og underleverandører):
B37: - Alle arbeider og maskiner innenfor anlegget.
B38: - Bas-biler/funksjonærbiler innenfor anlegget.
B39: - Massetransport til/fra/innenfor anlegget.
B40: - Elektrisitetsforbruk innenfor anlegget (inkludert lading av maskiner og verktøy, samt rigg).
B41: Drivstoffbruk for materialtransport inkluderes kun i A4 under hvert materiale.
B43: Utslippsfaktorer for drivstoff, energi og areal kan ikke endres.
B45: Utslippsfaktor for "diesel for veitransport' tar hensyn til en andel innblandet biodrivstoff ihht. omsetningskravet. Utslippsfaktor for anleggsdiesel vil tilpasses et eventuelt fremtidig omsetningskrav for biodrivstoff i anleggsdiesel når det blir aktuelt. Statens vegvesen følger anbefalingen fra Miljødirektoratet og vil ikke etterstrebe overoppfyllelse av omsetningskravene, det vil si at bruk av biodrivstoff utover omsetningskravet ikke vil etterspørres eller premieres.
B47: Eventuelle korte kommentarer kan legges inn i kolonne K (eks henvisning til EPD).
B49: Løsninger som reduserer klimagassutslipp men som ikke fanges opp av malen, dokumenteres separat.
B51: Hvis ikke byggherre gjør tilgjengelig andre/bedre grunnlag, skal AR5 kartlaget fra Norsk institutt for bioøkonomi (NIBIO) benyttes for beregninger av størrelsen (kvadratmeter) på arealbruksendringene. Klassifikasjonen i klimagassbudsjettet følger klassifikasjonen i AR5.
B52: Arealbruksendringer defineres som der hvor det gjøres fysiske inngrep og inkluderer:
B53: 1. Vegen og vegens sideareal (avgrenset av grensen på de fysiske inngrepene i terrenget ved byggingen av vegen)
B54: 2. Permanente og midlertidige deponier
B55: 3. Rigg og anleggsområder
B57: Når det gjelder arealbruksendringer, er det kun arealtype 'myr' det skal legges inn tall for. Andre typer er foreløpig utelatt på grunn av praktiske utfordringer. Utslippsfaktoren for myr er per m2 og basert på en antatt dybde på 1 m.
B59: Tiltak som fører til opptak av klimagasser (f.eks. planting av skog) skal ikke premieres som klimatiltak og skal ikke fylles inn i skjemaet
B61: Reduksjon av klimagass knyttet til biogent materiale skal ikke inkluderes.

Sheet Versjonslogg
B2: VERSJONSLOGG
B4: Versjon | C4: Dato | D4: Endring
B6: V15 | C6: 2022-02-25 | D6: Slettet sprøytebetong, kalksementstabilisering og sikringsbolter; ny fane 'versjonslogg'

Sheet Biodiesel (hidden)
B1: Energi (MJ/l) | C1: Utslipp kg CO2e/l | D1: Utslipp kg CO2e/MJ | E1: Utslipp g CO2e/MJ | F1: Kilde
A2: Diesel | B2: 36.2 | C2: 3.24 | D2: =C2/B2 -> 0.08950276243 | E2: =D2*1000 -> 89.50276243 | F2: https://www.ssb.no/a/magasinet/miljo/tabell.html
A3: EU red fossil referanse | E3: 83.8
A4: Biodiesel 50% (FAME) | B4: 33 | C4: =B4*D4 -> 1.3827 | D4: =E4/1000 -> 0.0419 | E4: =$E$3*50/100 -> 41.9
A5: Biodiesel 60% (FAME) | B5: 33 | C5: =B5*D5 -> 1.10616 | D5: =E5/1000 -> 0.03352 | E5: =E3*0.4 -> 33.52
A6: Biodiesel 70% (HVO) | B6: 34 | C6: =B6*D6 -> 0.85476 | D6: =E6/1000 -> 0.02514 | E6: =E3*0.3 -> 25.14
A7: Biodiesel 80% (HVO) | B7: 34 | C7: =B7*D7 -> 0.56984 | D7: =E7/1000 -> 0.01676 | E7: =E3*0.2 -> 16.76
A8: Biodiesel 90% (HVO) | B8: 34 | C8: =B8*D8 -> 0.28492 | D8: =E8/1000 -> 0.00838 | E8: =E3*0.1 -> 8.38
A10: Fame | B10: 33
A11: HVO | B11: 34
B13: Reduksjon % | C13: Utslipp g CO2e/MJ | D13: Utslipp kg CO2e/l (HVO) | E13: Utslipp kg CO2e/l (FAME)
A14: =_xlfn.TEXTJOIN(" ",0,$B$13,B14) -> Reduksjon % 50 | B14: 50 | C14: =$E$3*(1-B14/100) -> 41.9 | D14: =C14*B$11/1000 -> 1.4246 | E14: =C14*B$10/1000 -> 1.3827
A15: =_xlfn.TEXTJOIN(" ",0,$B$13,B15) -> Reduksjon % 51 | B15: 51 | C15: 41.062 | D15: 1.396108 | E15: 1.355046
A16: Reduksjon % 52 | B16: 52 | C16: 40.224 | D16: 1.367616 | E16: 1.327392
A17: Reduksjon % 53 | B17: 53 | C17: 39.386 | D17: 1.339124 | E17: 1.299738
A18: Reduksjon % 54 | B18: 54 | C18: 38.548 | D18: 1.310632 | E18: 1.272084
A19: Reduksjon % 55 | B19: 55 | C19: 37.71 | D19: 1.28214 | E19: 1.24443
A20: Reduksjon % 56 | B20: 56 | C20: 36.872 | D20: 1.253648 | E20: 1.216776
A21: Reduksjon % 57 | B21: 57 | C21: 36.034 | D21: 1.225156 | E21: 1.189122
A22: Reduksjon % 58 | B22: 58 | C22: 35.196 | D22: 1.196664 | E22: 1.161468
A23: Reduksjon % 59 | B23: 59 | C23: 34.358 | D23: 1.168172 | E23: 1.133814
A24: Reduksjon % 60 | B24: 60 | C24: 33.52 | D24: 1.13968 | E24: 1.10616
A25: Reduksjon % 61 | B25: 61 | C25: 32.682 | D25: 1.111188 | E25: 1.078506
A26: Reduksjon % 62 | B26: 62 | C26: 31.844 | D26: 1.082696 | E26: 1.050852
A27: Reduksjon % 63 | B27: 63 | C27: 31.006 | D27: 1.054204 | E27: 1.023198
A28: Reduksjon % 64 | B28: 64 | C28: 30.168 | D28: 1.025712 | E28: 0.995544
A29: Reduksjon % 65 | B29: 65 | C29: 29.33 | D29: 0.99722 | E29: 0.96789
A30: Reduksjon % 66 | B30: 66 | C30: 28.492 | D30: 0.968728 | E30: 0.940236
A31: Reduksjon % 67 | B31: 67 | C31: 27.654 | D31: 0.940236 | E31: 0.912582
A32: Reduksjon % 68 | B32: 68 | C32: 26.816 | D32: 0.911744 | E32: 0.884928
A33: Reduksjon % 69 | B33: 69 | C33: 25.978 | D33: 0.883252 | E33: 0.857274
A34: Reduksjon % 70 | B34: 70 | C34: 25.14 | D34: 0.85476 | E34: 0.82962
A35: Reduksjon % 71 | B35: 71 | C35: 24.302 | D35: 0.826268 | E35: 0.801966
A36: Reduksjon % 72 | B36: 72 | C36: 23.464 | D36: 0.797776 | E36: 0.774312
A37: Reduksjon % 73 | B37: 73 | C37: 22.626 | D37: 0.769284 | E37: 0.746658
A38: Reduksjon % 74 | B38: 74 | C38: 21.788 | D38: 0.740792 | E38: 0.719004
A39: Reduksjon % 75 | B39: 75 | C39: 20.95 | D39: 0.7123 | E39: 0.69135
A40: Reduksjon % 76 | B40: 76 | C40: 20.112 | D40: 0.683808 | E40: 0.663696
A41: Reduksjon % 77 | B41: 77 | C41: 19.274 | D41: 0.655316 | E41: 0.636042
A42: Reduksjon % 78 | B42: 78 | C42: 18.436 | D42: 0.626824 | E42: 0.608388
A43: Reduksjon % 79 | B43: 79 | C43: 17.598 | D43: 0.598332 | E43: 0.580734
A44: Reduksjon % 80 | B44: 80 | C44: 16.76 | D44: 0.56984 | E44: 0.55308
A45: Reduksjon % 81 | B45: 81 | C45: 15.922 | D45: 0.541348 | E45: 0.525426
A46: Reduksjon % 82 | B46: 82 | C46: =$E$3*(1-B46/100) -> 15.084 | D46: =C46*B$11/1000 -> 0.512856 | E46: =C46*B$10/1000 -> 0.497772
A47: Reduksjon % 83 | B47: 83 | C47: 14.246 | D47: 0.484364 | E47: 0.470118
A48: Reduksjon % 84 | B48: 84 | C48: 13.408 | D48: 0.455872 | E48: 0.442464
A49: Reduksjon % 85 | B49: 85 | C49: 12.57 | D49: 0.42738 | E49: 0.41481
A50: Reduksjon % 86 | B50: 86 | C50: 11.732 | D50: 0.398888 | E50: 0.387156
A51: Reduksjon % 87 | B51: 87 | C51: 10.894 | D51: 0.370396 | E51: 0.359502
A52: Reduksjon % 88 | B52: 88 | C52: 10.056 | D52: 0.341904 | E52: 0.331848
A53: Reduksjon % 89 | B53: 89 | C53: 9.218 | D53: 0.313412 | E53: 0.304194
A54: Reduksjon % 90 | B54: 90 | C54: 8.38 | D54: 0.28492 | E54: 0.27654
A55: Reduksjon % 91 | B55: 91 | C55: 7.542 | D55: 0.256428 | E55: 0.248886
A56: Reduksjon % 92 | B56: 92 | C56: 6.704 | D56: 0.227936 | E56: 0.221232
A57: Reduksjon % 93 | B57: 93 | C57: 5.866 | D57: 0.199444 | E57: 0.193578
A58: Reduksjon % 94 | B58: 94 | C58: 5.028 | D58: 0.170952 | E58: 0.165924
A59: Reduksjon % 95 | B59: 95 | C59: 4.19 | D59: 0.14246 | E59: 0.13827
A60: Reduksjon % 96 | B60: 96 | C60: 3.352 | D60: 0.113968 | E60: 0.110616
A61: Reduksjon % 97 | B61: 97 | C61: 2.514 | D61: 0.085476 | E61: 0.082962
A62: Reduksjon % 98 | B62: 98 | C62: 1.676 | D62: 0.056984 | E62: 0.055308
A63: Reduksjon % 99 | B63: 99 | C63: 0.838 | D63: 0.028492 | E63: 0.027654
A64: Reduksjon % 100 | B64: 100 | C64: 0 | D64: 0 | E64: 0
